bitfinex/quotes_ETHUSD_20240621
["timestamp","ask_amount","ask_price","bid_price","bid_amount"]
[1718952061217,1.02135737,3518.1,3517.6,2.2993]
[1718952061389,0.52897277,3518.0,3517.6,2.2993]
[1718952061589,0.52897277,3517.9,3517.6,2.2993]
[1718952062102,0.56328579,3517.8,3517.6,2.2993]
[1718952062256,0.52897277,3517.7,3517.6,5.82923]
[1718952062668,0.49237004,3518.4,3517.6,5.82923]
[1718952062885,0.39364423,3518.4,3517.6,5.2993]
[1718952063198,0.0343014,3518.3,3517.6,5.2993]
[1718952064388,0.52667411,3518.3,3517.6,5.2993]
[1718952064600,0.0343014,3518.3,3517.6,5.2993]
[1718952065602,1.36437271,3518.5,3517.7,3.0]
[1718952065799,0.03433632,3518.2,3517.7,3.0]
[1718952065971,0.93525421,3518.4,3517.6,2.2993]
[1718952066171,0.03433632,3518.1,3517.6,2.2993]
[1718952066382,0.93525421,3518.4,3517.6,2.2993]
[1718952066383,0.49237491,3518.3,3517.6,2.2993]
[1718952066585,0.03433632,3518.0,3517.6,2.2993]
[1718952066992,0.49237491,3518.4,3517.6,2.2993]
[1718952067193,0.36869749,3518.3,3517.6,2.2993]
[1718952067367,2.3226,3518.2,3517.5,3.0]
[1718952067567,2.3226,3517.9,3517.5,3.0]
[1718952067795,0.5267113,3517.8,3517.1,2.3435]
[1718952068067,0.49237498,3517.8,3517.1,2.3435]
[1718952069291,0.49237498,3517.8,3517.1,3.48309]
[1718952069510,0.49237498,3517.8,3517.2,3.0]
[1718952070379,2.3226,3517.9,3517.2,3.0]
[1718952070710,0.49244403,3517.8,3517.2,3.0]
[1718952070878,2.3226,3517.9,3517.2,3.0]
[1718952071243,0.49243814,3517.8,3517.2,3.0]
[1718952073397,0.03426648,3517.7,3517.1,2.3435]
[1718952073592,2.3226,3517.9,3517.1,2.3435]
[1718952073899,0.49244081,3517.8,3517.1,2.3435]
[1718952074099,0.52670729,3517.8,3517.1,2.3435]
[1718952074415,0.03426648,3517.7,3517.1,2.3435]
[1718952074723,0.49244081,3517.8,3517.1,2.3435]
[1718952075080,0.03426648,3517.7,3517.1,2.3435]
[1718952075319,0.49244081,3517.8,3517.1,3.48309]
[1718952075536,0.49244081,3517.8,3517.2,3.0]
[1718952076720,2.3226,3517.9,3517.2,3.0]
[1718952077019,0.52670892,3517.8,3517.2,3.0]
[1718952077221,0.52670892,3517.8,3517.1,2.3435]
[1718952077423,0.52670892,3517.8,3517.1,3.18309]
[1718952077600,0.49244244,3517.8,3517.2,3.0]
[1718952078325,1.36444244,3517.8,3517.2,3.0]
[1718952078612,1.36444244,3517.8,3517.0,3.0]
[1718952078613,0.03426648,3517.7,3517.0,3.0]
[1718952078820,1.36444244,3517.8,3517.0,3.0]
[1718952079024,1.36444244,3517.8,3517.0,4.15315]
[1718952079025,0.03426648,3517.6,3517.0,4.15315]
[1718952079229,1.36444244,3517.8,3517.0,4.15315]
[1718952079603,0.03426648,3517.7,3517.0,4.15315]
[1718952079990,1.36449677,3517.8,3517.0,4.15315]
[1718952080230,0.03426648,3517.6,3517.1,0.42023045]
[1718952080517,0.49249676,3517.7,3517.1,0.42023045]
[1718952080726,1.36449676,3517.8,3517.1,0.42023045]
[1718952081115,0.52676338,3517.7,3517.1,0.42023045]
[1718952081312,0.03426648,3517.7,3517.0,3.0]
[1718952081514,1.3644969,3517.8,3517.0,3.0]
[1718952081989,0.03426648,3517.7,3517.0,3.0]
[1718952082189,1.3644969,3517.8,3517.0,3.0]
[1718952082519,1.15670956,3517.7,3517.0,3.0]
[1718952082719,1.61493998,3517.6,3517.0,3.0]
[1718952082887,1.12244308,3517.5,3517.0,3.0]
[1718952083093,1.61496459,3517.4,3517.0,3.0]
[1718952083419,1.61496459,3517.3,3517.0,3.0]
[1718952083612,1.61496459,3517.2,3516.8,5.4791]
[1718952083926,1.61496459,3517.1,3516.8,5.4791]
[1718952084224,1.61496459,3517.0,3516.8,5.4791]
[1718952084394,1.61496459,3516.9,3516.8,5.4791]
[1718952086032,1.12244308,3516.9,3516.8,5.4791]
[1718952086388,0.4925246,3516.9,3516.8,5.4791]
[1718952086591,1.61496768,3517.5,3516.8,5.4791]
[1718952086890,1.64915266,3517.4,3516.8,5.4791]
[1718952087089,1.61496768,3517.3,3516.8,5.4791]
[1718952087292,1.61496768,3517.2,3516.9,0.63511]
[1718952087525,1.61496768,3517.1,3516.9,3.63511]
[1718952087721,1.61496768,3517.0,3516.9,3.63511]
[1718952089127,1.12244308,3517.0,3516.9,3.63511]
[1718952089299,0.49252455,3517.0,3516.9,3.63511]
[1718952089501,0.49252455,3517.6,3516.9,3.63511]
[1718952089739,1.12244116,3517.5,3516.9,3.0]
[1718952090040,1.12244116,3517.5,3516.8,2.4791]
[1718952090041,1.61496554,3517.4,3516.8,5.4791]
[1718952090205,1.61496554,3517.3,3516.8,5.4791]
[1718952090408,1.61496554,3517.2,3516.9,0.63511]
[1718952090631,1.61496554,3517.1,3516.9,3.63511]
[1718952090923,1.61496554,3517.0,3516.9,3.63511]
[1718952091096,1.61496554,3517.0,3516.9,3.0]
[1718952091525,1.61496554,3517.0,3516.8,5.4791]
[1718952091827,1.61496554,3516.9,3516.8,3.0]
[1718952092029,1.61496554,3516.9,3516.6,6.2291]
[1718952092201,1.61496554,3516.8,3516.6,7.37005]
[1718952092526,2.3226,3517.5,3516.6,6.49805]
[1718952092527,1.61499288,3516.7,3516.6,6.49805]
[1718952092715,2.10754463,3516.7,3516.6,6.2291]
[1718952094719,2.10754463,3516.7,3516.6,5.3571]
[1718952095129,2.10754463,3516.7,3516.6,6.2291]
[1718952095428,1.61499288,3516.7,3516.6,6.2291]
[1718952095655,2.10754751,3516.7,3516.6,6.85201]
[1718952097733,2.10754751,3516.7,3516.6,5.98001]
[1718952097902,2.10754751,3516.7,3516.6,6.85201]
[1718952098634,2.10755844,3516.7,3516.6,6.85201]
[1718952099009,2.10755844,3516.7,3516.6,5.98001]
[1718952099211,2.10755844,3516.7,3516.6,3.0]
[1718952099212,2.10755409,3516.7,3516.6,3.0]
[1718952099419,2.10755409,3516.7,3516.3,6.3284]
[1718952099609,1.61500237,3516.6,3516.3,6.3284]
[1718952099809,1.12244116,3516.5,3516.3,6.3284]
[1718952100033,1.12244116,3516.4,3516.3,7.49130974]
[1718952100232,0.49258101,3516.4,3516.3,7.49130974]
[1718952100408,1.61502217,3516.4,3516.3,7.49130974]
[1718952100599,1.61502217,3516.4,3516.3,6.61930974]
[1718952100799,1.61502217,3516.4,3516.3,7.49130974]
[1718952101000,1.61502217,3516.4,3516.3,6.61930974]
[1718952101331,1.61502217,3516.4,3516.3,7.49130974]
[1718952101707,1.61506956,3516.4,3516.3,3.872]
[1718952102326,1.61506956,3516.4,3516.3,0.872]
[1718952102544,1.61506956,3516.4,3516.2,3.1202974]
[1718952102740,1.61506956,3516.3,3516.2,3.9922974]
[1718952103706,1.61506956,3516.3,3516.2,3.1202974]
[1718952103906,1.61506956,3516.3,3516.2,3.9922974]
[1718952104405,1.64896744,3516.3,3516.2,3.9922974]
[1718952104825,1.64896536,3516.3,3516.2,3.9922974]
[1718952107035,1.64896536,3516.3,3516.2,0.1202974]
[1718952108062,1.64896826,3516.3,3516.2,0.1202974]
[1718952108415,1.64896845,3516.3,3516.2,0.1202974]
[1718952108754,1.64896859,3516.3,3516.2,0.1202974]
[1718952109223,1.64896851,3516.3,3516.2,0.1202974]
[1718952109764,1.64896851,3516.3,3516.2,3.01822714]
[1718952110076,1.61507063,3516.3,3516.2,6.01822714]
[1718952111329,1.61505019,3516.3,3516.2,3.1202974]
[1718952111841,1.6487618,3516.3,3516.2,3.1202974]
[1718952112018,1.6487618,3516.3,3516.2,0.1202974]
[1718952114355,1.64880547,3516.3,3516.2,0.1202974]
[1718952114659,1.64880545,3516.3,3516.2,0.1202974]
[1718952116427,1.61509384,3516.3,3516.2,0.1202974]
[1718952117431,1.61509066,3516.3,3516.2,0.1202974]
[1718952117829,1.12244116,3516.3,3516.2,0.1202974]
[1718952118028,1.6150931,3516.7,3516.2,0.1202974]
[1718952118341,1.64880471,3516.6,3516.2,0.1202974]
[1718952118541,1.6150931,3516.5,3516.2,0.1202974]
[1718952118741,1.61508987,3516.4,3516.2,0.1202974]
[1718952118942,1.61508987,3516.3,3516.2,0.1202974]
[1718952119150,1.61508987,3516.3,3516.2,0.9922974]
[1718952119151,1.64880148,3516.3,3516.2,0.9922974]
[1718952120071,1.64880148,3516.3,3516.2,0.1202974]
[1718952120547,1.15615277,3516.3,3516.2,0.1202974]
[1718952120933,1.64880043,3516.3,3516.2,0.1202974]
[1718952122938,1.64878371,3516.3,3516.2,0.1202974]
[1718952126279,1.64880022,3516.3,3516.2,0.1202974]
[1718952126676,1.15615277,3516.3,3516.2,0.1202974]
[1718952127658,1.64880237,3516.3,3516.2,0.1202974]
[1718952129158,1.15615277,3516.3,3516.2,0.1202974]
[1718952129353,1.64879945,3516.3,3516.2,0.1202974]
[1718952132366,1.64880215,3516.3,3516.2,0.1202974]
[1718952135352,1.15615277,3516.3,3516.2,0.1202974]
[1718952135559,1.6488047,3516.3,3516.2,0.1202974]
[1718952135947,1.64880452,3516.3,3516.2,0.1202974]
[1718952136653,1.64879755,3516.3,3516.2,0.1202974]
[1718952138569,1.15615277,3516.3,3516.2,0.1202974]
[1718952138769,1.64879503,3516.3,3516.2,0.1202974]
[1718952141792,1.15615277,3516.3,3516.2,0.1202974]
[1718952141954,1.64879092,3516.3,3516.2,0.1202974]
[1718952144946,1.64879119,3516.3,3516.2,0.1202974]
[1718952145517,1.648791,3516.3,3516.2,2.6120974]
[1718952145650,1.648791,3516.3,3516.2,7.04530714]
[1718952147081,1.61507939,3516.3,3516.2,7.04530714]
[1718952148078,1.12244116,3516.3,3516.2,7.04530714]
[1718952148469,1.61503238,3516.3,3516.2,7.04530714]
[1718952149285,1.61503238,3516.3,3516.2,3.1202974]
[1718952149494,1.64848006,3516.3,3516.2,3.1202974]
[1718952149860,1.64848006,3516.3,3516.2,0.1202974]
[1718952150105,1.64848006,3516.3,3516.2,3.1202974]
[1718952150380,1.64848006,3516.3,3516.2,5.5430974]
[1718952151191,1.64853318,3516.3,3516.2,5.5430974]
[1718952152455,1.64853318,3516.3,3516.2,3.1202974]
[1718952152856,1.64853318,3516.3,3516.2,0.1202974]
[1718952153057,1.64853318,3516.3,3516.2,3.1202974]
[1718952153858,1.64853318,3516.3,3516.2,0.1202974]
[1718952154076,1.64853318,3516.3,3516.2,3.1202974]
[1718952154275,1.15588884,3516.3,3516.2,3.1202974]
[1718952154482,1.15588884,3516.3,3516.2,0.1202974]
[1718952154660,1.64853304,3516.3,3516.2,0.1202974]
[1718952157274,1.64853304,3516.3,3516.2,0.9922974]
[1718952157466,1.64853304,3516.3,3516.2,0.1202974]
[1718952157467,1.64852557,3516.3,3516.2,0.1202974]
[1718952160600,1.15588884,3516.3,3516.2,0.1202974]
[1718952160991,1.64853686,3516.3,3516.2,0.1202974]
[1718952163695,1.15588884,3516.3,3516.2,0.1202974]
[1718952163904,1.6485524,3516.3,3516.2,0.1202974]
[1718952164290,1.64855517,3516.3,3516.2,0.1202974]
[1718952167214,1.64855483,3516.3,3516.2,0.1202974]
[1718952168831,1.15588884,3516.3,3516.2,0.1202974]
[1718952168984,1.64854996,3516.3,3516.2,0.1202974]
[1718952170420,1.64855036,3516.3,3516.2,0.1202974]
[1718952173324,1.15588884,3516.3,3516.2,0.1202974]
[1718952173505,1.64853528,3516.3,3516.2,2.5021974]
[1718952173849,1.15588884,3516.3,3516.2,5.5021974]
[1718952174006,1.64853371,3516.3,3516.2,6.13961714]
[1718952174411,1.61508603,3516.3,3516.2,6.13961714]
[1718952174731,1.6150862,3516.3,3516.2,6.13961714]
[1718952175026,1.6150862,3516.3,3516.2,5.5021974]
[1718952176425,1.12244116,3516.3,3516.2,5.5021974]
[1718952176606,1.61508683,3516.3,3516.2,5.5021974]
[1718952177613,1.64832487,3516.3,3516.2,5.5021974]
[1718952178136,1.64832487,3516.3,3516.2,3.1202974]
[1718952178829,1.64832487,3516.3,3516.2,0.1202974]
[1718952179808,1.64832623,3516.3,3516.2,0.1202974]
[1718952180800,1.64717783,3516.3,3516.2,0.1202974]
[1718952181998,1.1545308,3516.3,3516.2,0.1202974]
[1718952182201,1.64717471,3516.3,3516.2,0.1202974]
[1718952182399,1.64717471,3516.3,3516.2,0.76530714]
[1718952182597,1.12129276,3516.3,3516.2,0.76530714]
[1718952182817,1.15460844,3516.3,3516.2,0.76530714]
[1718952183032,1.6472524,3516.3,3516.2,0.76530714]
[1718952183348,1.64725245,3516.3,3516.2,0.76530714]
[1718952185203,1.64723423,3516.3,3516.2,0.76530714]
[1718952186802,1.64723423,3516.3,3516.2,1.63730714]
[1718952187003,1.64723423,3516.3,3516.2,3.9922974]
[1718952187318,1.64723423,3516.3,3516.2,0.9922974]
[1718952188555,1.64721322,3516.3,3516.2,0.9922974]
[1718952191542,1.64719982,3516.3,3516.2,0.9922974]
[1718952191905,1.64719985,3516.3,3516.2,0.9922974]
[1718952192318,1.64719985,3516.3,3516.2,0.1202974]
[1718952194036,1.64719985,3516.3,3516.2,2.6159974]
[1718952194241,1.64719985,3516.3,3516.2,5.6159974]
[1718952194440,1.12129276,3516.3,3516.2,5.6159974]
[1718952194648,1.61387148,3516.3,3516.2,5.6159974]
[1718952194852,1.61387148,3516.3,3516.2,6.26479714]
[1718952195557,1.12129276,3516.3,3516.2,6.26479714]
[1718952195722,1.12197414,3517.7,3516.3,2.4172]
[1718952196058,1.61446679,3517.6,3517.3,0.872]
[1718952196257,4.0,3517.4,3517.3,0.872]
[1718952196468,5.52197451,3517.4,3517.3,0.872]
[1718952196617,5.6144615,3517.4,3517.3,0.872]
[1718952197152,5.6144615,3517.4,3517.1,3.872]
[1718952197355,1.6144615,3517.3,3517.1,3.872]
[1718952197532,1.61445694,3517.2,3517.1,3.872]
[1718952198255,1.64661048,3517.2,3517.1,3.872]
[1718952199854,1.61445694,3517.2,3517.1,3.872]
[1718952200550,1.28145694,3517.2,3517.1,3.872]
[1718952200750,1.28145778,3517.2,3517.1,3.872]
[1718952200952,2.3226,3517.8,3517.1,3.872]
[1718952200953,0.49248327,3517.7,3517.1,3.872]
[1718952201249,0.49248314,3517.7,3517.1,3.872]
[1718952202623,0.49248314,3517.7,3517.1,3.0]
[1718952202823,0.80302645,3517.7,3517.0,0.872]
[1718952203554,2.3226,3517.6,3516.8,3.0]
[1718952203871,2.3226,3517.4,3516.6,3.0]
[1718952204050,0.49256215,3517.3,3516.6,3.0]
[1718952204222,0.52498739,3517.3,3516.6,3.0]
[1718952204422,0.42695874,3517.2,3516.6,3.0]
[1718952204919,2.35502524,3517.1,3516.6,3.0]
[1718952205158,0.49256215,3517.0,3516.6,3.0]
[1718952205738,0.49256215,3517.0,3516.5,3.0]
[1718952206447,0.49256215,3517.0,3516.4,0.872]
[1718952206651,0.49256215,3517.0,3516.3,3.0]
[1718952206846,0.49258227,3517.0,3516.5,0.872]
[1718952210035,0.49259407,3517.0,3516.5,0.872]
[1718952210460,0.49259419,3517.0,3516.5,0.872]
[1718952211138,0.4925985,3517.0,3516.5,0.872]
[1718952211544,0.03242524,3516.9,3516.5,0.872]
[1718952214043,0.03242524,3516.9,3516.7,0.872]
[1718952214246,0.03242524,3516.9,3516.7,3.2759]
[1718952214448,0.03242524,3516.9,3516.8,3.0]
[1718952214654,0.49259681,3517.4,3516.8,3.0]
[1718952214850,0.03226611,3516.9,3516.8,3.0]
[1718952215170,0.49259681,3517.4,3516.8,3.0]
[1718952215375,0.03226611,3516.9,3516.8,3.0]
[1718952215558,0.49259681,3517.4,3516.8,3.0]
[1718952215757,0.28151968,3517.3,3516.8,3.0]
[1718952216167,0.03226611,3517.2,3516.8,3.0]
[1718952216864,0.03226611,3517.2,3516.6,0.872]
[1718952219595,1.0426015,3517.3,3516.6,0.872]
[1718952219869,0.03246408,3517.1,3516.6,0.872]
[1718952220071,0.91632137,3517.2,3516.6,0.872]
[1718952220276,0.03246408,3517.0,3516.6,0.872]
[1718952220441,0.76198902,3516.9,3516.6,0.872]
[1718952220653,0.76198902,3516.8,3516.6,0.872]
[1718952221269,0.76198902,3516.7,3516.6,0.872]
[1718952221775,0.76198902,3516.9,3516.6,0.872]
[1718952221975,0.03246408,3516.7,3516.6,0.872]
[1718952222152,0.76198902,3516.7,3516.6,0.872]
[1718952222347,0.76198902,3517.1,3516.6,1.5032]
[1718952222547,0.03246408,3516.7,3516.6,0.872]
[1718952222842,0.76198902,3516.7,3516.6,0.872]
[1718952223247,0.76198902,3517.2,3516.6,0.872]
[1718952223446,0.76198902,3517.1,3516.6,0.872]
[1718952223673,0.76198902,3517.0,3516.6,0.872]
[1718952223857,0.76198902,3516.9,3516.6,0.872]
[1718952224054,0.76198902,3516.8,3516.6,0.872]
[1718952224255,0.76198902,3516.7,3516.6,0.872]
[1718952224461,0.7944531,3516.7,3516.6,0.872]
[1718952224661,0.76198902,3516.7,3516.6,0.872]
[1718952225061,0.76198902,3517.2,3516.6,0.872]
[1718952225267,0.76198902,3517.1,3516.6,0.872]
[1718952225469,0.76198902,3517.0,3516.6,0.872]
[1718952225647,0.76198902,3516.9,3516.6,0.872]
[1718952225853,0.76198902,3516.8,3516.6,0.872]
[1718952226052,0.76198902,3516.7,3516.6,0.872]
[1718952226247,0.03246408,3516.7,3516.6,0.872]
[1718952226452,0.76198902,3516.7,3516.6,0.872]
[1718952226647,0.76198902,3516.7,3516.5,3.872]
[1718952226984,0.76198902,3516.6,3516.5,0.872]
[1718952227307,1.04350877,3517.2,3516.5,0.872]
[1718952227510,1.25458651,3517.1,3516.5,0.872]
[1718952227650,0.76198902,3517.0,3516.5,0.872]
[1718952227852,0.76198902,3516.9,3516.5,0.872]
[1718952228103,0.76198902,3516.8,3516.7,0.872]
[1718952228247,0.03247571,3516.8,3516.5,0.872]
[1718952228449,0.76198902,3516.7,3516.5,1.27122974]
[1718952228752,0.76198902,3516.7,3516.5,0.872]
[1718952229287,0.76198902,3516.6,3516.5,0.872]
[1718952229783,0.76198902,3517.0,3516.5,0.872]
[1718952229987,0.03247571,3516.6,3516.5,0.872]
[1718952230191,0.76198902,3516.8,3516.5,0.872]
[1718952230392,0.03247571,3516.6,3516.5,0.872]
[1718952230576,0.76198902,3516.6,3516.5,0.872]
[1718952231402,1.25459105,3517.2,3516.5,0.872]
[1718952231561,0.03247571,3516.6,3516.5,0.872]
[1718952231766,0.76198902,3516.6,3516.5,0.872]
[1718952232191,1.25458881,3517.1,3516.5,0.872]
[1718952232370,0.79446473,3517.0,3516.5,0.872]
[1718952232571,0.76198902,3516.9,3516.5,0.872]
[1718952232776,0.49259979,3517.2,3516.5,0.872]
[1718952232777,0.76198902,3516.8,3516.5,0.872]
[1718952233100,0.79446473,3516.7,3516.5,0.872]
[1718952233295,0.76198902,3516.6,3516.5,0.872]
[1718952233600,0.76198902,3516.6,3516.2,3.1202974]
[1718952233601,2.2969,3516.5,3516.2,0.1202974]
[1718952233780,2.2969,3516.5,3515.3,5.1804]
[1718952233781,0.872,3516.3,3515.4,3.0]
[1718952233975,1.80458881,3516.2,3515.4,3.0]
[1718952234190,1.28701408,3516.1,3515.4,3.0]
[1718952234504,0.76198902,3516.0,3515.4,3.0]
[1718952234662,0.76198902,3515.9,3515.4,3.0]
[1718952234867,0.76198902,3515.8,3515.3,5.1804]
[1718952235070,0.76198902,3515.7,3515.3,5.1804]
[1718952235509,0.76198902,3515.7,3515.5,0.872]
[1718952235797,0.03242527,3515.6,3515.5,0.872]
[1718952235986,0.79441429,3515.6,3515.5,0.872]
[1718952236188,0.76198902,3515.6,3515.5,0.872]
[1718952236698,0.76198902,3516.0,3515.5,0.872]
[1718952237090,0.03242527,3515.9,3515.5,0.872]
[1718952237287,0.76198902,3515.8,3515.5,0.872]
[1718952237787,0.76198902,3515.7,3515.5,0.872]
[1718952237994,0.76198902,3515.6,3515.5,0.872]
[1718952238191,0.76198902,3516.0,3515.5,0.872]
[1718952238500,0.03242527,3515.6,3515.5,0.872]
[1718952238703,0.76198902,3515.6,3515.5,0.872]
[1718952239069,0.76198902,3515.8,3515.5,0.872]
[1718952239269,0.76198902,3515.7,3515.5,0.872]
[1718952239474,0.76198902,3515.6,3515.5,0.872]
[1718952239671,0.76198902,3516.3,3515.3,0.872]
[1718952239871,0.76198902,3516.2,3515.3,0.872]
[1718952240109,1.28714811,3516.2,3515.3,0.872]
[1718952240306,0.76198902,3516.1,3515.3,0.872]
[1718952240509,1.01826276,3516.1,3515.3,0.872]
[1718952240671,1.25472284,3516.0,3515.3,0.872]
[1718952240868,0.76198902,3515.9,3515.5,0.872]
[1718952241506,0.03242527,3515.8,3515.5,0.872]
[1718952241673,0.76198902,3515.7,3515.5,0.872]
[1718952242086,0.49274068,3516.0,3515.5,3.3032]
[1718952242087,0.76198902,3515.6,3515.5,3.3032]
[1718952242292,0.76198902,3515.9,3515.5,6.3032]
[1718952242493,0.75410018,3516.5,3515.8,0.872]
[1718952242814,1.10169174,3516.4,3515.8,0.872]
[1718952243010,1.25433713,3516.3,3515.8,0.872]
[1718952243186,0.76159645,3516.2,3515.8,0.872]
[1718952243584,0.79402172,3516.2,3515.6,3.0]
[1718952243796,0.76159645,3516.1,3515.6,0.872]
[1718952244108,0.76159645,3516.1,3515.6,3.872]
[1718952244308,0.79402172,3516.0,3515.6,3.872]
[1718952244473,0.76159645,3515.9,3515.6,3.872]
[1718952245031,0.03242527,3515.8,3515.6,3.872]
[1718952245314,0.76159645,3515.7,3515.6,3.0]
[1718952245497,2.3226,3516.1,3515.3,3.0]
[1718952245698,1.61200346,3516.0,3515.3,3.872]
[1718952245879,1.25445484,3515.9,3515.3,3.872]
[1718952246080,0.76173905,3515.8,3515.3,3.872]
[1718952246481,0.03242527,3515.7,3515.3,3.872]
[1718952246804,0.76173905,3515.6,3515.3,3.872]
[1718952246974,0.76173905,3515.5,3515.3,3.872]
[1718952247179,0.42873905,3515.4,3515.3,3.0]
[1718952247506,0.42873905,3515.4,3515.3,0.872]
[1718952247712,0.42873905,3515.4,3515.3,3.872]
[1718952247925,0.85042884,3516.0,3515.3,3.872]
[1718952248123,0.26802912,3515.9,3515.3,3.872]
[1718952248287,0.30009332,3515.9,3515.3,3.0]
[1718952248611,0.26802912,3515.9,3515.4,0.872]
[1718952249115,0.0320642,3515.8,3515.4,0.872]
[1718952250578,0.49272805,3516.0,3515.4,0.872]
[1718952250780,0.0320642,3515.9,3515.4,0.872]
[1718952253006,0.49273892,3516.0,3515.4,0.872]
[1718952253202,0.0320642,3515.9,3515.4,0.872]
[1718952253608,0.0320642,3515.9,3515.6,0.872]
[1718952254105,0.49273892,3516.3,3515.6,0.872]
[1718952254434,0.0320642,3515.8,3515.6,0.872]
[1718952254626,0.49273892,3516.3,3515.6,0.872]
[1718952254814,0.0320642,3516.2,3515.6,0.872]
[1718952256025,0.49270719,3516.3,3515.6,0.872]
[1718952256212,0.31359492,3516.2,3515.6,0.872]
[1718952256603,0.31359492,3516.2,3515.3,3.0]
[1718952256802,0.31359492,3516.2,3515.6,0.872]
[1718952257856,0.0320642,3516.2,3515.7,2.3027]
[1718952258006,0.0320642,3516.2,3515.7,5.3027]
[1718952258407,0.49271633,3516.3,3515.7,5.3027]
[1718952258984,0.0320642,3516.2,3515.7,5.3027]
[1718952259243,0.49271633,3516.3,3515.7,5.3027]
[1718952259244,0.49270676,3516.3,3515.7,5.3027]
[1718952259455,0.0320642,3516.2,3515.7,5.3027]
[1718952259950,0.49270676,3516.3,3515.7,5.3027]
[1718952260308,0.0320642,3516.2,3515.7,5.3027]
[1718952260635,0.49270676,3516.3,3515.7,5.3027]
[1718952260858,0.0320642,3516.2,3515.7,5.3027]
[1718952261153,0.49270676,3516.3,3515.7,5.3027]
[1718952261857,0.0320642,3516.2,3515.7,3.0]
[1718952262070,0.49270676,3516.3,3515.6,3.872]
[1718952262264,0.0321108,3516.2,3515.6,3.872]
[1718952262410,0.4927045,3516.3,3515.8,0.872]
[1718952262946,0.0321108,3516.2,3515.8,0.872]
[1718952263306,2.2908,3516.4,3515.8,0.872]
[1718952263524,0.4927045,3516.3,3515.8,0.872]
[1718952263740,0.5248153,3516.3,3515.8,0.872]
[1718952265331,0.0321108,3516.3,3515.8,0.872]
[1718952265536,0.52479664,3516.3,3515.8,0.872]
[1718952265871,0.0321108,3516.3,3515.8,0.872]
[1718952266165,0.52479652,3516.3,3515.8,0.872]
[1718952267133,0.40102699,3516.2,3515.8,0.872]
[1718952267808,0.0321108,3516.1,3515.8,0.872]
[1718952267951,0.40102699,3516.0,3515.8,0.872]
[1718952268633,0.43313779,3515.9,3515.8,0.872]
[1718952271155,0.43313779,3515.9,3515.6,3.872]
[1718952271460,0.40102699,3515.8,3515.6,3.872]
[1718952271679,0.40102699,3515.8,3515.7,0.872]
[1718952271873,0.0321108,3515.8,3515.7,0.872]
[1718952272070,0.40102699,3515.8,3515.7,0.872]
[1718952272267,0.43318439,3515.8,3515.6,3.0]
[1718952272468,0.40102699,3515.7,3515.6,3.0]
[1718952273689,0.40102699,3516.1,3515.6,3.0]
[1718952273885,0.43318439,3516.0,3515.6,3.0]
[1718952274193,0.40102699,3515.9,3515.6,3.0]
[1718952274784,0.43318439,3515.8,3515.6,3.0]
[1718952275085,0.40102699,3515.7,3515.6,3.0]
[1718952275451,0.40102699,3516.0,3515.6,3.0]
[1718952275656,0.43318439,3515.9,3515.6,3.0]
[1718952275883,0.40102699,3515.8,3515.6,3.0]
[1718952276253,0.43318439,3515.7,3515.6,3.0]
[1718952276457,0.40102699,3515.7,3515.6,3.0]
[1718952276782,0.40102699,3516.0,3515.6,3.0]
[1718952276978,0.40102699,3515.9,3515.6,3.0]
[1718952277179,0.40102699,3515.8,3515.6,3.0]
[1718952277380,0.40102699,3515.7,3515.6,3.0]
[1718952277582,1.16933261,3515.7,3515.4,0.872]
[1718952277759,0.40102699,3515.6,3515.4,0.872]
[1718952277958,0.40102699,3515.6,3515.5,0.872]
[1718952278259,0.43318439,3515.6,3515.5,0.872]
[1718952281365,0.43318439,3515.6,3515.5,3.872]
[1718952281695,0.40102699,3515.6,3515.5,3.872]
[1718952285072,0.40102699,3515.6,3515.5,6.81087]
[1718952288571,0.40102699,3515.6,3515.5,6.1777]
[1718952290568,0.40102699,3515.6,3515.5,3.872]
[1718952290798,0.43314943,3515.6,3515.5,0.872]
[1718952297594,2.75574943,3515.6,3515.4,3.0]
[1718952297794,0.8937513,3515.5,3515.1,0.872]
[1718952297995,0.40102699,3515.4,3515.3,0.872]
[1718952298320,0.43319601,3515.4,3515.3,0.872]
[1718952300312,0.92596668,3515.4,3515.3,0.872]
[1718952300814,0.43319601,3515.4,3515.3,0.872]
[1718952303096,0.92596346,3515.4,3515.3,0.872]
[1718952303417,0.92596346,3515.4,3515.3,3.95222]
[1718952303719,0.89382549,3515.4,3515.3,3.95222]
[1718952303908,0.40105804,3515.4,3515.3,6.95222]
[1718952304290,0.40105804,3516.2,3515.3,6.95222]
[1718952304621,0.43263868,3516.1,3516.0,0.872]
[1718952304921,0.40058224,3516.1,3516.0,0.872]
[1718952307138,0.40058224,3516.1,3515.8,0.872]
[1718952307301,0.40058224,3516.0,3515.8,0.872]
[1718952307508,0.40058224,3515.9,3515.8,0.872]
[1718952309135,0.40058224,3515.9,3515.4,8.1804]
[1718952309328,0.40058224,3515.8,3515.6,0.872]
[1718952309528,0.40058224,3515.7,3515.6,0.872]
[1718952309713,0.40058224,3515.7,3515.4,3.0]
[1718952309905,0.40058224,3515.6,3515.5,0.872]
[1718952310107,0.43276681,3515.6,3515.4,3.0]
[1718952310416,0.40058224,3515.5,3515.1,5.2907]
[1718952310623,0.40058224,3515.4,3515.1,5.2907]
[1718952310819,0.40058224,3515.3,3515.1,2.2907]
[1718952311022,0.40058224,3515.2,3515.1,2.2907]
[1718952311517,0.40058224,3515.7,3515.1,2.2907]
[1718952311718,0.40058224,3515.6,3515.1,2.2907]
[1718952311938,0.40058224,3515.5,3515.1,2.2907]
[1718952312144,0.40058224,3515.4,3515.1,2.2907]
[1718952312438,0.40058224,3515.3,3515.1,2.2907]
[1718952312612,0.40058224,3515.2,3515.1,2.2907]
[1718952312807,0.40058224,3515.7,3515.1,2.2907]
[1718952313020,0.40058224,3515.6,3515.1,2.2907]
[1718952313219,0.49274913,3515.8,3515.1,2.2907]
[1718952313220,0.40058224,3515.5,3515.1,2.2907]
[1718952313421,0.40058224,3515.4,3515.1,2.2907]